bitfinex-derivatives/quotes_SOLF0:USTF0_20250709
["timestamp","ask_amount","ask_price","bid_price","bid_amount"]
[1752051579932,6.5609,152.4,152.36,6.5625]
[1752051580131,3.83020043,152.42,152.38,0.04227828]
[1752051580334,6.5606,152.41,152.38,0.04227828]
[1752051584340,6.561,152.4,152.38,0.04227828]
[1752051584536,10.34871642,152.4,152.38,0.04227828]
[1752051584928,0.04248401,152.42,152.38,0.04227828]
[1752051585135,3.83020043,152.42,152.38,0.04227828]
[1752051585437,0.04248401,152.42,152.38,0.04227828]
[1752051587935,0.04248401,152.42,152.39,6.5612]
[1752051588136,3.83020043,152.42,152.38,0.04227828]
[1752051588932,6.60268401,152.42,152.38,6.60367828]
[1752051589638,6.60268401,152.42,152.39,6.5611]
[1752051589639,0.04248401,152.42,152.39,6.5611]
[1752051593643,0.04248401,152.42,152.4,6.5608]
[1752051594039,0.04248401,152.42,152.38,0.04227828]
[1752051595642,0.04248401,152.42,152.4,6.5605]
[1752051596339,0.04248401,152.42,152.38,0.04227828]
[1752051596743,0.04248401,152.42,152.4,6.5606]
[1752051599846,0.04248401,152.42,152.41,6.5604]
[1752051600837,6.04481642,152.48,152.39,2.2873]
[1752051601146,6.04481642,152.48,152.41,3.78771642]
[1752051601546,6.5585,152.46,152.43,6.5595]
[1752051602048,6.5585,152.46,152.43,6.60432589]
[1752051603046,6.60143666,152.46,152.43,6.60432589]
[1752051605345,3.78771642,152.44,152.43,0.04482589]
[1752051605543,3.78771642,152.44,152.37,3.78771642]
[1752051605942,6.56,152.42,152.38,6.5616]
[1752051606348,3.78771642,152.44,152.37,3.78771642]
[1752051606548,6.5598,152.43,152.37,3.78771642]
[1752051606851,3.78771642,152.46,152.37,3.78771642]
[1752051607452,6.5592,152.44,152.41,6.5604]
[1752051607651,6.5592,152.44,152.38,2.2871]
[1752051608350,6.5588,152.45,152.38,2.2871]
[1752051608549,6.5588,152.45,152.39,3.78771642]
[1752051608951,6.5588,152.45,152.41,6.5601]
[1752051609342,6.5591,152.44,152.41,6.5601]
[1752051610052,6.5588,152.45,152.41,6.5601]
[1752051610353,3.78771642,152.46,152.41,6.5601]
[1752051610950,2.2571,152.48,152.41,8.98287756]
[1752051611150,2.42277756,152.44,152.41,8.98287756]
[1752051611550,2.42277756,152.45,152.41,8.98287756]
[1752051611745,2.42277756,152.44,152.4,2.42277756]
[1752051611947,8.98267756,152.43,152.39,2.42277756]
[1752051612548,2.42277756,152.43,152.39,2.42277756]
[1752051612953,2.42277756,152.42,152.4,6.5605]
[1752051613151,12.1802072,152.47,152.34,18.35049595]
[1752051613354,2.42277756,152.42,152.38,2.42277756]
[1752051613556,8.98177756,152.45,152.41,8.98297756]
[1752051613962,2.42277756,152.45,152.41,8.98297756]
[1752051614348,2.2571,152.48,152.41,8.98297756]
[1752051614755,2.42277756,152.45,152.41,8.98297756]
[1752051614955,2.42277756,152.45,152.42,8.98247756]
[1752051615155,2.42277756,152.46,152.42,2.42277756]
[1752051615356,2.42277756,152.46,152.41,2.42277756]
[1752051615651,2.42277756,152.45,152.41,2.42277756]
[1752051615950,6.5591,152.44,152.41,8.98307756]
[1752051616355,8.98157756,152.45,152.41,8.98307756]
[1752051616857,6.5588,152.45,152.41,6.5603]
[1752051617052,6.5588,152.45,152.42,6.5599]
[1752051618059,6.5589,152.45,152.41,6.5601]
[1752051618265,6.5589,152.45,152.39,22.1357786]
[1752051618555,6.5589,152.45,152.42,6.5599]
[1752051621556,6.5584,152.46,152.43,6.5594]
[1752051623962,6.5587,152.45,152.43,6.5594]
[1752051624354,6.5587,152.45,152.42,6.5597]
[1752051624755,6.5594,152.44,152.42,0.04952804]
[1752051625662,10.39044551,152.45,152.42,6.60922804]
[1752051625858,3.83154551,152.45,152.42,6.60922804]
[1752051626457,6.5593,152.44,152.42,6.60922804]
[1752051628651,6.5593,152.44,152.42,0.04952804]
[1752051630155,6.60526286,152.45,152.42,6.60952804]
[1752051633662,6.5592,152.44,152.42,6.60952804]
[1752051634160,0.04626286,152.45,152.42,6.60952804]
[1752051634362,6.60516286,152.45,152.42,6.60952804]
[1752051637463,0.04626286,152.45,152.43,6.5595]
[1752051638771,2.46877561,152.45,152.43,6.5595]
[1752051640672,0.04626286,152.45,152.43,6.5595]
[1752051642872,2.46877561,152.45,152.43,6.5595]
[1752051644473,0.04626286,152.45,152.44,6.5591]
[1752051646475,2.3124,152.52,152.45,6.5584]
[1752051646671,2.42251275,152.49,152.45,8.98091275]
[1752051647068,6.5576,152.48,152.45,8.98091275]
[1752051647674,6.5576,152.48,152.45,9.02421168]
[1752051648276,2.42251275,152.46,152.41,18.35049595]
[1752051648474,2.42251275,152.43,152.39,2.42251275]
[1752051648775,8.98141275,152.45,152.42,6.5599]
[1752051649476,8.98141275,152.45,152.41,6.5603]
[1752051650776,6.5589,152.45,152.41,6.5603]
[1752051651176,6.5589,152.45,152.42,6.56]
[1752051651379,6.5589,152.45,152.39,18.35049595]
[1752051652778,6.5585,152.46,152.42,6.5599]
[1752051653678,6.5585,152.46,152.43,6.5594]
[1752051654082,10.34366888,152.47,152.4,3.78566888]
[1752051654278,10.34366888,152.47,152.44,6.5589]
[1752051655785,6.5575,152.48,152.45,6.5584]
[1752051655973,3.78566888,152.49,152.41,18.35049595]
[1752051656177,2.3124,152.52,152.39,18.35049595]
[1752051656178,3.78566888,152.43,152.39,18.35049595]
[1752051656477,3.78566888,152.43,152.38,2.228]
[1752051656478,10.34526888,152.43,152.38,2.228]
[1752051656680,3.78566888,152.44,152.38,2.228]
[1752051656875,0.04467032,152.43,152.39,0.04550775]
[1752051657880,6.60437032,152.43,152.39,6.60660775]
[1752051658181,0.04467032,152.43,152.39,0.04550775]
[1752051659081,0.04467032,152.43,152.39,3.83117663]
[1752051659284,0.04467032,152.43,152.39,22.18167258]
[1752051659673,0.04467032,152.43,152.4,6.5607]
[1752051660884,0.04467032,152.43,152.41,6.5604]
[1752051662378,0.04467032,152.43,152.42,6.56]
[1752051664290,0.04467032,152.43,152.41,6.5602]
[1752051666986,0.04467032,152.43,152.39,22.18167258]
[1752051667481,0.04467032,152.43,152.41,6.56]
[1752051668486,0.04467032,152.43,152.42,6.56]
[1752051673689,0.04467032,152.43,152.41,6.5602]
[1752051674789,0.04467032,152.43,152.4,6.5606]
[1752051675187,6.60427032,152.43,152.4,6.5606]
[1752051677788,0.04467032,152.43,152.39,0.04550775]
[1752051678997,0.04467032,152.43,152.4,6.5605]
[1752051679295,0.04467032,152.43,152.39,18.3960037]
[1752051680296,0.04467032,152.43,152.4,6.5607]
[1752051680796,0.04467032,152.43,152.4,8.98362213]
[1752051680997,2.46759245,152.43,152.4,6.5607]
[1752051681202,2.46759245,152.43,152.4,8.98362213]
[1752051682094,2.46759245,152.43,152.41,6.5602]
[1752051682694,0.04467032,152.43,152.41,6.5602]
[1752051685095,0.04467032,152.43,152.4,2.42292213]
[1752051685991,0.04467032,152.43,152.39,0.04550775]
[1752051686393,0.04467032,152.43,152.41,6.5602]
[1752051687201,0.04467032,152.43,152.41,6.5604]
[1752051688602,0.04467032,152.43,152.42,6.56]
[1752051690708,0.04467032,152.43,152.42,8.98292213]
[1752051692100,2.42292213,152.46,152.43,6.5592]
[1752051693310,2.42292213,152.46,152.43,6.6085096]
[1752051693602,8.98122213,152.46,152.43,6.6085096]
[1752051694811,8.98122213,152.46,152.44,6.559]
[1752051700313,6.5583,152.46,152.44,6.559]
[1752051700514,8.98122213,152.46,152.44,6.559]
[1752051702608,2.42292213,152.48,152.46,6.5582]
[1752051702810,2.42292213,152.49,152.46,6.5582]
[1752051704014,2.42292213,152.48,152.46,6.5582]
[1752051704611,8.98042213,152.48,152.46,6.5582]
[1752051708212,8.98042213,152.48,152.45,9.02631781]
[1752051708613,4.5485,152.51,152.46,2.42292213]
[1752051708811,575.6479757,152.56,152.47,2.42292213]
[1752051709011,16.60343262,152.55,152.47,2.42292213]
[1752051709218,6.5563,152.51,152.48,6.557]
[1752051709413,8.97922213,152.51,152.49,0.05040487]
[1752051710816,6.5563,152.51,152.49,0.05040487]
[1752051711016,8.97922213,152.51,152.49,0.05040487]
[1752051714922,8.97912213,152.51,152.49,0.05040487]
[1752051715318,2.42292213,152.51,152.49,0.05040487]
[1752051715520,571.1395,152.56,152.5,2.42292213]
[1752051715722,2.42292213,152.53,152.5,2.42292213]
[1752051715919,8.97862213,152.52,152.49,6.60710487]
[1752051716122,8.97862213,152.52,152.49,9.030027]
[1752051717222,6.5557,152.52,152.49,9.030027]
[1752051719216,8.97862213,152.52,152.49,9.030027]
[1752051720126,6.5562,152.51,152.49,2.473327]
[1752051720427,2.42292213,152.5,152.41,2.1431]
[1752051720617,2.42292213,152.46,152.44,6.5588]
[1752051720822,2.42292213,152.47,152.42,2.42292213]
[1752051721224,2.42292213,152.47,152.43,2.42292213]
[1752051721423,2.42292213,152.47,152.44,6.5588]
[1752051721623,2.46493603,152.47,152.44,6.5588]
[1752051722629,9.02293603,152.47,152.44,6.5588]
[1752051722828,6.6000139,152.47,152.44,6.5588]
[1752051725830,6.5584,152.46,152.43,0.04928071]
[1752051726130,3.82632529,152.47,152.43,0.04928071]
[1752051726328,6.5585,152.46,152.43,6.60858071]
[1752051726631,3.82632529,152.47,152.43,6.60858071]
[1752051727224,0.0420139,152.47,152.43,0.04928071]
[1752051727426,0.0420139,152.47,152.43,3.8335921]
[1752051728731,0.0420139,152.47,152.46,6.5582]
[1752051739941,6.5999139,152.47,152.45,6.5585]
[1752051740441,3.82632529,152.47,152.43,0.04928071]
[1752051741543,6.5589,152.45,152.43,0.04928071]
[1752051742942,6.5589,152.45,152.43,6.60878071]
[1752051743943,6.5589,152.45,152.43,0.04928071]
[1752051745840,3.78431139,152.45,152.43,0.04928071]
[1752051746040,3.78431139,152.45,152.37,214.58051387]
[1752051746238,6.5606,152.41,152.38,6.5614]
[1752051747247,6.60578829,152.41,152.38,6.5614]
[1752051748649,6.60578829,152.41,152.39,6.5612]
[1752051750148,0.04518829,152.41,152.39,6.5612]
[1752051750549,0.04518829,152.41,152.4,6.5608]
[1752051751449,0.04518829,152.41,152.39,6.5611]
[1752051752352,0.04518829,152.41,152.4,6.5608]
[1752051756450,3.78431139,152.44,152.43,6.5595]
[1752051756655,8.32321139,152.46,152.39,3.78431139]
[1752051756855,6.5589,152.45,152.39,3.78431139]
[1752051757352,6.5589,152.45,152.42,6.5598]
[1752051757952,6.60265006,152.45,152.42,6.5598]
[1752051762349,0.04375006,152.45,152.43,6.5595]
[1752051763052,0.04375006,152.45,152.44,6.5591]
[1752051765456,0.04375006,152.45,152.43,6.5593]
[1752051765958,0.04375006,152.45,152.44,6.5591]
[1752051769463,0.04375006,152.45,152.43,6.5593]
[1752051770863,6.60255006,152.45,152.43,6.5593]
[1752051772269,0.04375006,152.45,152.43,6.5593]
[1752051773167,0.04375006,152.45,152.41,3.78431139]
[1752051774267,0.04375006,152.45,152.41,3.8287276]
[1752051774868,0.04375006,152.45,152.44,2.42185345]
[1752051775663,6.5575,152.48,152.44,2.42185345]
[1752051775863,6.5575,152.48,152.45,2.42185345]
[1752051776268,8.97935345,152.48,152.45,8.98035345]
[1752051776768,8.97935345,152.48,152.45,9.02919321]
[1752051777068,6.5575,152.48,152.45,6.60733976]
[1752051777473,6.5571,152.49,152.46,6.5582]
[1752051780170,10.34045921,152.5,152.45,0.04883976]
[1752051780672,6.5563,152.51,152.48,6.5574]
[1752051781066,6.5563,152.51,152.48,6.60557301]
[1752051781974,6.5562,152.51,152.48,0.04817301]
[1752051784171,6.13185921,152.52,152.48,0.04817301]
[1752051784374,3.78365921,152.5,152.48,0.04817301]
[1752051785069,6.557,152.49,152.48,0.04817301]
[1752051787375,6.5567,152.5,152.48,0.04817301]
[1752051789776,6.557,152.49,152.48,0.04817301]
[1752051791377,6.5568,152.5,152.48,0.04817301]
[1752051793479,6.5566,152.5,152.48,0.04817301]
[1752051796476,3.78365921,152.51,152.48,0.04817301]
[1752051796978,6.5568,152.5,152.48,0.04817301]
[1752051799180,6.557,152.49,152.48,0.04817301]
[1752051800880,8.97852273,152.49,152.48,0.04817301]
[1752051803484,6.55011652,152.49,152.4,18.35049595]
[1752051803682,2.42152273,152.43,152.4,2.42152273]
[1752051803883,2.42152273,152.43,152.41,6.5602]
[1752051804083,2.42152273,152.43,152.4,2.42152273]
[1752051804686,2.42152273,152.44,152.41,6.5601]
[1752051804882,10.34499269,152.45,152.41,6.5601]
[1752051805187,0.04965335,152.44,152.41,6.5601]
[1752051805487,0.04965335,152.44,152.41,6.60190235]
[1752051809293,7.80450037,152.46,152.36,6.5625]
[1752051809591,3.78589269,152.41,152.36,6.5625]
[1752051809792,6.561,152.4,152.36,6.5625]
[1752051809994,3.78589269,152.41,152.35,6.5628]
[1752051810193,3.78589269,152.39,152.32,24.40328864]
[1752051810693,3.78589269,152.39,152.32,6.05279269]
[1752051811891,0.04769389,152.4,152.34,3.78589269]
[1752051812192,0.04769389,152.4,152.36,3.78589269]
[1752051812996,0.04769389,152.4,152.38,6.5617]
[1752051813393,0.04769389,152.4,152.39,6.5613]
[1752051819103,3.78589269,152.44,152.4,6.5606]
[1752051819507,3.78589269,152.44,152.38,0.04345237]
[1752051820501,6.5603,152.42,152.39,6.5613]
[1752051821405,6.5606,152.41,152.38,6.60495237]
[1752051822005,6.5602,152.42,152.38,6.60495237]
[1752051823204,6.5602,152.42,152.39,6.5613]
[1752051823904,0.04553911,152.43,152.38,0.04345237]
[1752051824204,3.78589269,152.4,152.38,0.04345237]
[1752051825509,6.5613,152.39,152.38,0.04345237]
[1752051826403,3.78589269,152.4,152.38,0.04345237]
[1752051826606,3.78589269,152.42,152.38,0.04345237]
[1752051826807,0.04553911,152.43,152.38,0.04345237]
[1752051827017,6.60543911,152.43,152.39,6.5611]
[1752051827209,0.04553911,152.43,152.38,0.04345237]
[1752051827603,6.60513911,152.43,152.4,6.5606]
[1752051828406,0.04553911,152.43,152.38,0.04345237]
[1752051828709,3.78589269,152.41,152.38,0.04345237]
[1752051828905,6.5608,152.41,152.38,0.04345237]
[1752051831502,6.5608,152.41,152.38,6.60515237]
[1752051833010,6.5613,152.39,152.38,0.04345237]
[1752051833414,10.34719269,152.39,152.38,0.04345237]
[1752051834416,6.562,152.38,152.34,6.5633]
[1752051835417,6.61116001,152.38,152.34,6.5633]
[1752051836410,0.04916001,152.38,152.34,3.78589269]
[1752051837109,0.04916001,152.38,152.36,6.5626]
[1752051837311,0.04916001,152.38,152.34,3.78589269]
[1752051838117,0.04916001,152.38,152.37,6.5622]
[1752051843517,0.04916001,152.38,152.34,3.78589269]
[1752051844522,0.04916001,152.38,152.37,6.5622]
[1752051844719,0.04916001,152.38,152.32,4.6067]
[1752051844916,0.04916001,152.38,152.34,3.78589269]
[1752051845323,0.04916001,152.38,152.36,6.5624]
[1752051847530,0.04916001,152.38,152.34,3.78589269]
[1752051848029,0.04916001,152.38,152.36,6.5623]
[1752051848329,0.04916001,152.38,152.34,3.78589269]
[1752051848526,0.04916001,152.38,152.36,6.5623]
[1752051849231,0.04916001,152.38,152.37,6.5622]
[1752051863244,0.04916001,152.38,152.36,8.98662675]
[1752051863541,0.04916001,152.38,152.36,6.5624]
[1752051865945,2.42422675,152.37,152.33,18.35049595]
[1752051866145,2.42422675,152.37,152.33,20.7747227]
[1752051866547,8.98662675,152.37,152.34,6.5631]
[1752051866944,6.5624,152.37,152.34,6.5631]
[1752051867145,6.5624,152.37,152.34,6.60481784]
[1752051867543,6.61106001,152.38,152.35,6.5629]
[1752051869150,6.5622,152.37,152.35,6.5629]
[1752051870350,6.61106001,152.38,152.35,6.5629]
[1752051872750,0.04916001,152.38,152.34,18.87148209]
[1752051872953,0.04916001,152.38,152.35,12.26646425]
[1752051873249,6.5624,152.37,152.34,18.87148209]
[1752051874351,6.5624,152.37,152.35,6.563]
[1752051875657,0.04916001,152.38,152.34,18.87138209]
[1752051875844,0.04916001,152.38,152.34,6.60491784]
[1752051876251,6.5622,152.37,152.34,0.04171784]
[1752051876553,6.5622,152.37,152.35,6.563]
[1752051877757,6.5622,152.37,152.36,6.5626]
[1752051877959,6.5622,152.37,152.34,12.30818209]
[1752051878264,6.5622,152.37,152.35,6.5628]
[1752051880378,6.61106001,152.38,152.35,6.5628]
[1752051880563,0.04916001,152.38,152.35,6.5628]
[1752051881568,6.5622,152.37,152.35,6.5628]
[1752051881762,6.5622,152.37,152.34,18.87138209]
[1752051884968,0.04916001,152.38,152.35,12.26646425]
[1752051886473,0.04916001,152.38,152.36,6.5623]
[1752051887272,6.61086001,152.38,152.36,6.5623]
[1752051887474,9.03537023,152.38,152.36,6.5623]
[1752051887974,2.47367023,152.38,152.36,6.5623]
[1752051889973,9.03547023,152.38,152.35,6.5628]
[1752051890271,2.42451022,152.37,152.34,2.46622806]
[1752051890477,6.5623,152.37,152.34,9.02942806]
[1752051890672,8.98681022,152.37,152.34,9.02942806]
[1752051891269,8.98681022,152.37,152.34,6.60491784]
[1752051891472,6.61106001,152.38,152.35,6.563]
[1752051891679,2.42451022,152.37,152.35,6.563]
[1752051894982,2.42451022,152.37,152.35,18.8338027]
[1752051898788,2.42451022,152.37,152.35,6.563]
[1752051899187,2.42451022,152.37,152.36,6.5626]
[1752051900591,2.42451022,152.37,152.35,6.5628]
[1752051900892,6.61106001,152.38,152.35,6.5628]
[1752051901089,2.42451022,152.37,152.35,6.5628]
[1752051901793,6.61106001,152.38,152.35,6.5628]
[1752051901992,2.42451022,152.37,152.35,6.5628]
[1752051905495,8.98671022,152.37,152.35,6.5628]
[1752051905694,2.42451022,152.36,152.34,0.04171784]
[1752051906295,2.42451022,152.36,152.34,6.60491784]
[1752051906495,2.42451022,152.36,152.34,24.95541379]
[1752051912797,2.42451022,152.36,152.34,6.60491784]
[1752051912995,8.98711022,152.36,152.34,0.04171784]
[1752051913199,2.42451022,152.35,152.34,0.04171784]
[1752051913699,8.98751022,152.35,152.34,0.04171784]
[1752051917907,6.5638,152.34,152.3,2.42451022]
[1752051918196,8.98831022,152.34,152.31,2.42451022]
[1752051918391,2.42451022,152.34,152.31,8.98901022]
[1752051918994,9.03013628,152.34,152.31,8.98901022]
[1752051920403,6.60562606,152.34,152.31,8.98901022]
[1752051921505,9.03013628,152.34,152.31,8.98901022]
[1752051921805,6.60562606,152.34,152.31,8.98901022]
[1752051922004,9.03013628,152.34,152.31,8.98901022]
[1752051922305,2.46663628,152.34,152.32,6.5642]
[1752051922899,9.03013628,152.34,152.32,6.5642]
[1752051924000,9.03013628,152.34,152.31,8.98901022]
[1752051925108,2.42451022,152.33,152.3,12.2725199]
[1752051925303,2.42451022,152.31,152.28,12.2725199]
[1752051925608,2.42451022,152.3,152.27,14.69703012]
[1752051925804,8.99001022,152.3,152.27,12.2725199]
[1752051926004,8.99001022,152.3,152.27,14.69703012]
[1752051926308,9.03251128,152.3,152.27,14.69703012]
[1752051926504,9.03251128,152.3,152.27,8.99061022]
[1752051927708,0.04250106,152.3,152.29,6.5656]
[1752051928007,0.04250106,152.3,152.29,8.99011022]
[1752051928211,401.67260058,152.44,152.29,8.99011022]
[1752051928212,7.79839797,152.41,152.29,2.42451022]
[1752051928512,2.42451022,152.35,152.32,2.42451022]
[1752051928900,2.42451022,152.35,152.33,6.5638]
[1752051929100,2.42451022,152.36,152.33,8.98831022]
[1752051929411,2.47199607,152.36,152.33,8.98831022]
[1752051930011,2.47199607,152.36,152.33,6.5638]
[1752051930209,2.47199607,152.36,152.33,8.98831022]
[1752051930411,9.03469607,152.36,152.33,6.5638]
[1752051930612,9.03469607,152.36,152.33,2.42451022]
[1752051931212,9.03469607,152.36,152.32,6.5642]
[1752051931406,9.03469607,152.36,152.33,2.42451022]
[1752051933608,0.04748585,152.36,152.33,8.98831022]
[1752051933806,2.47199607,152.36,152.33,8.98831022]
[1752051934215,9.03459607,152.36,152.33,8.98831022]
[1752051935010,9.03459607,152.36,152.33,2.42451022]
[1752051935213,9.03459607,152.36,152.32,8.98861022]
[1752051936512,6.5631,152.35,152.32,8.98861022]
[1752051936914,6.5635,152.34,152.32,2.42451022]
[1752051937110,2.42451022,152.34,152.3,2.42451022]
[1752051937616,6.5641,152.33,152.3,2.42451022]
[1752051938514,2.42451022,152.34,152.3,2.42451022]
[1752051938515,6.5644,152.32,152.3,2.42451022]
[1752051940620,6.5648,152.31,152.28,11.2517]
[1752051940820,6.5648,152.31,152.28,2.42451022]
[1752051941421,6.5648,152.31,152.28,8.99031022]
[1752051942216,8.98901022,152.32,152.28,8.99031022]
[1752051942620,8.98901022,152.32,152.29,6.5656]
[1752051942821,2.42451022,152.31,152.26,18.35049595]
[1752051943019,2.42451022,152.31,152.28,2.42451022]
[1752051943221,2.42451022,152.31,152.27,8.99071022]
[1752051943421,8.98951022,152.31,152.27,8.99071022]
[1752051944625,8.98951022,152.31,152.27,2.42451022]
[1752051945026,8.98951022,152.31,152.28,6.5659]
[1752051945825,8.98951022,152.31,152.28,18.81852043]
[1752051950826,6.565,152.31,152.28,18.81852043]
[1752051951029,8.98951022,152.31,152.28,18.81852043]
[1752051954030,2.42451022,152.3,152.28,18.81852043]
[1752051955133,2.42451022,152.31,152.29,6.5656]
[1752051956728,8.98931022,152.31,152.29,6.5656]
[1752051957835,2.42451022,152.31,152.29,6.5656]
[1752051959536,2.42451022,152.32,152.3,6.5652]
[1752051960139,2.42451022,152.32,152.31,6.5647]
[1752051960438,2.4705992,152.33,152.29,14.67713065]
[1752051960728,9.0344992,152.33,152.3,6.5649]
[1752051960935,2.42451022,152.32,152.3,6.5649]
[1752051961236,9.0344992,152.33,152.3,6.5649]
[1752051961836,2.42451022,152.32,152.3,6.5649]
[1752051962136,8.98891022,152.32,152.29,18.81802043]
[1752051964239,6.5648,152.31,152.29,12.25262043]
[1752051964638,8.98931022,152.31,152.28,18.81842043]
[1752051965040,2.42451022,152.31,152.27,12.25262043]
[1752051965339,2.42451022,152.3,152.27,14.67713065]
[1752051965541,8.98951022,152.31,152.28,6.566]
[1752051966940,6.5652,152.3,152.27,21.24343065]
[1752051967838,6.5652,152.3,152.28,12.25262043]
[1752051968238,8.98971022,152.3,152.28,12.25262043]
[1752051969336,2.42451022,152.3,152.28,12.25262043]
[1752051969638,2.42451022,152.3,152.27,12.25262043]
[1752051970537,6.5654,152.3,152.27,21.24333065]
[1752051970744,8.98991022,152.3,152.28,12.25262043]
[1752051971641,8.98991022,152.3,152.27,21.28550039]
[1752051974247,8.98991022,152.3,152.28,12.25262043]
[1752051974652,8.98991022,152.3,152.27,21.28550039]
[1752051975352,6.5654,152.3,152.27,21.28550039]
[1752051975549,8.98991022,152.3,152.27,18.86099017]
[1752051976450,8.98991022,152.3,152.28,12.25262043]
[1752051976651,8.98991022,152.3,152.27,18.86099017]
[1752051977250,8.98991022,152.3,152.28,12.25262043]
[1752051978154,6.565,152.31,152.28,18.81862043]
[1752051978456,2.42451022,152.3,152.28,18.81862043]
[1752051978759,8.98971022,152.3,152.28,12.25262043]
[1752051979753,8.99011022,152.29,152.28,12.25262043]
[1752051979948,2.42451022,152.29,152.27,0.04216974]
[1752051980153,2.42451022,152.28,152.27,0.04216974]
[1752051980353,8.99051022,152.28,152.27,0.04216974]
[1752051981456,2.42451022,152.28,152.27,0.04216974]
[1752051982758,2.42451022,152.28,152.27,6.60866974]
[1752051985052,2.42451022,152.28,152.27,18.86129017]
[1752051985756,2.42451022,152.28,152.27,12.29479017]
[1752051988053,2.42451022,152.28,152.27,18.86129017]
[1752051990961,2.42451022,152.28,152.27,12.29479017]
[1752051991764,2.42451022,152.28,152.27,0.04216974]
[1752051992263,2.42451022,152.28,152.27,6.60866974]
[1752051992963,2.42451022,152.28,152.27,12.29479017]
[1752051995668,6.61299055,152.29,152.27,12.29479017]
[1752051995854,2.42451022,152.28,152.27,12.29479017]
[1752051996364,2.47180077,152.29,152.27,18.86109017]
[1752051997766,4.4768,152.34,152.28,12.25262043]
[1752051997767,2.42451022,152.31,152.28,12.25262043]
[1752051997962,4.4768,152.34,152.28,12.25262043]
[1752051998167,2.42451022,152.33,152.3,6.5648]
[1752051998369,2.42451022,152.32,152.3,6.5648]
[1752051998667,2.42451022,152.32,152.29,14.67713065]
[1752051998864,2.42451022,152.32,152.3,6.5652]
[1752051999069,0.04193377,152.32,152.3,12.25262043]
[1752051999264,4.5993,152.38,152.31,2.42451022]
[1752051999465,8.4924197,152.37,152.33,12.27018161]
[1752051999669,2.42451022,152.35,152.33,12.27018161]
[1752051999865,2.42451022,152.34,152.32,12.27018161]
[1752052000569,2.42451022,152.34,152.32,18.83418161]
[1752052000761,0.04263233,152.35,152.32,18.83418161]
[1752052000962,0.04263233,152.35,152.34,6.5634]
[1752052001166,0.04263233,152.35,152.34,18.83358161]
[1752052002964,0.04263233,152.35,152.34,6.5634]
[1752052003964,0.04263233,152.35,152.34,8.98791022]
[1752052005470,0.04263233,152.35,152.34,6.5634]
[1752052010672,0.04263233,152.35,152.33,8.98821022]
[1752052010972,0.04263233,152.35,152.33,6.5637]
[1752052014077,2.46714255,152.35,152.32,6.5641]
[1752052014773,0.04263233,152.35,152.33,6.5638]
[1752052014973,2.46714255,152.35,152.33,6.5638]
[1752052018480,0.04263233,152.35,152.31,2.4692316]
[1752052018679,2.46714255,152.35,152.31,2.4692316]
[1752052018979,2.46714255,152.35,152.33,6.5638]
[1752052019176,2.46714255,152.35,152.31,2.4692316]
[1752052019177,0.04263233,152.35,152.32,2.42451022]
[1752052019579,0.04263233,152.35,152.33,6.5636]
[1752052021380,2.46714255,152.35,152.33,6.5636]
[1752052022182,2.46714255,152.35,152.32,2.42451022]
[1752052022183,2.46714255,152.35,152.34,6.5634]
[1752052022783,2.46714255,152.35,152.33,6.5636]
[1752052023988,2.42451022,152.34,152.31,0.04472138]
[1752052024186,2.42451022,152.32,152.31,0.04472138]
[1752052024583,2.42451022,152.33,152.31,0.04472138]
[1752052024791,2.42451022,152.32,152.31,0.04472138]
[1752052025090,2.42451022,152.32,152.26,20.77500617]
[1752052025286,2.42451022,152.29,152.25,206.36341629]
[1752052025493,2.42451022,152.29,152.27,6.5662]
[1752052028596,6.565,152.31,152.28,6.566]
[1752052028796,2.42451022,152.3,152.28,6.566]
[1752052029396,2.2797,152.37,152.29,6.5656]
[1752052029588,2.42451022,152.31,152.29,6.5656]
[1752052029994,2.42451022,152.31,152.28,6.5658]
[1752052032600,2.42451022,152.31,152.29,6.5655]
[1752052032896,2.42451022,152.31,152.27,2.42451022]
[1752052033295,2.42451022,152.32,152.3,6.5652]
[1752052034100,2.42451022,152.32,152.29,6.5654]
[1752052034295,2.42451022,152.31,152.29,6.5654]
[1752052038197,2.42451022,152.31,152.3,6.5652]
[1752052038395,2.42451022,152.31,152.27,2.42451022]
[1752052039600,2.42451022,152.31,152.29,6.5654]
[1752052042902,6.6079389,152.33,152.3,6.5652]
[1752052043098,2.42451022,152.31,152.3,6.5652]
[1752052043301,6.6079389,152.33,152.3,6.5652]
[1752052043498,2.42451022,152.31,152.28,2.42451022]
[1752052043699,2.42451022,152.31,152.29,6.5654]
[1752052048392,2.42451022,152.3,152.29,6.5654]
[1752052051698,0.0440389,152.33,152.29,6.5654]